fUSD/lending_fUSD_20260620
["ID","MTS","AMOUNT","RATE_DAILY","PERIOD"]
[425819640,1781935838000,-9999.99,0.00016116,2]
[425819641,1781935838000,-208.2,0.00016338,2]
[425819646,1781935838000,-208.2,0.00016338,2]
[425819645,1781935838000,-208.2,0.00016338,2]
[425819643,1781935838000,-208.2,0.00016338,2]
[425819644,1781935838000,-208.2,0.00016338,2]
[425819628,1781935838000,-166.66,0.00015559,2]
[425819617,1781935838000,-500.0,0.00014999,2]
[425819618,1781935838000,-291.38624529,0.00014999,2]
[425819619,1781935838000,-500.0,0.00014999,2]
[425819588,1781935838000,-200.0,0.000147,2]
[425819589,1781935838000,-1376.43,0.000147,2]
[425819587,1781935838000,-65494.06005584,0.00014674,2]
[425819590,1781935838000,-500.0,0.00014774,2]
[425819594,1781935838000,-6226.29,0.00014777,2]
[425819592,1781935838000,-9999.99,0.00014777,2]
[425819591,1781935838000,-330.809134,0.00014777,2]
[425819593,1781935838000,-370.81,0.00014777,2]
[425819596,1781935838000,-9999.99,0.00014777,2]
[425819595,1781935838000,-9999.99,0.00014777,2]
[425819599,1781935838000,-5063.45,0.00014779,2]
[425819597,1781935838000,-999.94,0.00014777,2]
[425819598,1781935838000,-151.0,0.00014779,2]
[425819601,1781935838000,-8643.5695,0.000148,2]
[425819600,1781935838000,-32945.23544244,0.000148,2]
[425819602,1781935838000,-2500.0,0.000148,2]
[425819605,1781935838000,-5735.40817939,0.000148,2]
[425819603,1781935838000,-2301.0303,0.000148,2]
[425819607,1781935838000,-9999.99,0.000148,2]
[425819606,1781935838000,-150.99,0.000148,2]
[425819604,1781935838000,-18325.03614296,0.000148,2]
[425819609,1781935838000,-3532.86,0.00014874,2]
[425819611,1781935838000,-412316.1062,0.000149,2]
[425819608,1781935838000,-304.80907065,0.00014864,2]
[425819610,1781935838000,-200.0,0.00014883,2]
[425819612,1781935838000,-33309.9394,0.000149,2]
[425819615,1781935838000,-500.0,0.00014999,2]
[425819613,1781935838000,-7113.87564602,0.00014989,2]
[425819648,1781935838000,-208.2,0.00016338,2]
[425819651,1781935838000,-152.0,0.00016338,2]
[425819649,1781935838000,-208.2,0.00016338,2]
[425819681,1781935838000,-166.66,0.00017613,2]
[425819680,1781935838000,-500.0,0.00017603,2]
[425819685,1781935838000,-166.66,0.0001788,2]
[425819687,1781935838000,-424.69,0.000179,2]
[425819684,1781935838000,-500.0,0.00017852,2]
[425819686,1781935838000,-938.83221879,0.0001789,2]
[425819689,1781935838000,-661.1225485,0.0001799,2]
[425819691,1781935838000,-1211.15551995,0.00018,2]
[425819688,1781935838000,-368.43,0.000179,2]
[425819693,1781935838000,-1613.0535,0.00018051,2]
[425819690,1781935838000,-110142.08438421,0.00018,2]
[425819694,1781935838000,-1807.38665643,0.000181,2]
[425819678,1781935838000,-5735.40817936,0.00017414,2]
[425819696,1781935838000,-166.66,0.00018256,2]
[425819697,1781935838000,-75818.31,0.00018356,2]
[425819699,1781935838000,-541.3,0.0001841,2]
[425819700,1781935838000,-150.0,0.00018423,2]
[425819698,1781935838000,-1376.43,0.00018375,2]
[425819702,1781935838000,-150.0,0.00018423,2]
[425819706,1781935838000,-250.0,0.00018499,2]
[425819705,1781935838000,-18325.0361429,0.00018429,2]
[425819703,1781935838000,-150.0,0.00018423,2]
[425819707,1781935838000,-1672.7364795,0.00018599,2]
[425819704,1781935838000,-279.73608303,0.00018423,2]
[425819701,1781935838000,-150.0,0.00018423,2]
[425819647,1781935838000,-208.2,0.00016338,2]
[425819695,1781935838000,-166.66,0.00018127,2]
[425819683,1781935838000,-403.0,0.000177,5]
[425819692,1781935838000,-1553.46007118,0.00018,2]
[425819676,1781935838000,-900.0,0.00017371,2]
[425819679,1781935838000,-1555.5,0.00017503,2]
[425819652,1781935838000,-152.0,0.00016338,2]
[425819653,1781935838000,-150.0,0.00016338,2]
[425819655,1781935838000,-2500.0,0.00016405,2]
[425819654,1781935838000,-152.0,0.00016338,2]
[425819657,1781935838000,-500.0,0.00016437,2]
[425819656,1781935838000,-500.0,0.00016437,2]
[425819658,1781935838000,-500.0,0.00016437,2]
[425819659,1781935838000,-500.0,0.00016437,2]
[425819662,1781935838000,-153.61758556,0.00016438,2]
[425819661,1781935838000,-541.3,0.00016438,2]
[425819660,1781935838000,-502.70111222,0.00016437,2]
[425819664,1781935838000,-179.39769902,0.00016438,2]
[425819663,1781935838000,-178.0,0.00016438,2]
[425819650,1781935838000,-152.0,0.00016338,2]
[425819682,1781935838000,-795.436035,0.000177,2]
[425819666,1781935838000,-166.66,0.00016586,2]
[425819677,1781935838000,-32945.23544241,0.00017378,2]
[425819675,1781935838000,-500.0,0.00017261,2]
[425819674,1781935838000,-500.0,0.00017261,2]
[425819673,1781935838000,-500.0,0.00017261,2]
[425819672,1781935838000,-18325.0361429,0.00017219,2]
[425819667,1781935838000,-321.47,0.0001665,7]
[425819665,1781935838000,-1376.43,0.00016538,2]
[425819671,1781935838000,-178.12,0.00017171,2]
[425819668,1781935838000,-253.68,0.00016765,2]
[425819670,1781935838000,-166.66,0.000171,2]
[425819669,1781935838000,-1500.0,0.00016955,2]
[425819739,1781935839000,-3950.0,0.0002,2]
[425819746,1781935839000,-52543.49065504,0.0002,2]
[425819747,1781935839000,-4977.62640007,0.0002,2]
[425819744,1781935839000,-37986.99761428,0.0002,2]
[425819741,1781935839000,-1316.98522877,0.0002,2]
[425819737,1781935839000,-165.0,0.0002,2]
[425819740,1781935839000,-26884.64867989,0.0002,2]
[425819745,1781935839000,-1063.05260875,0.0002,2]
[425819743,1781935839000,-200.0,0.0002,2]
[425819738,1781935839000,-26027.14472791,0.0002,2]
[425819748,1781935839000,-929.97434045,0.0002,2]
[425819742,1781935839000,-540.6474904,0.0002,2]
[425819751,1781935839000,-18125.39184301,0.0002,2]
[425819757,1781935839000,-1108.0,0.0002,2]
[425819749,1781935839000,-13086.74438088,0.0002,2]
[425819753,1781935839000,-24146.36,0.0002,2]
[425819752,1781935839000,-15679.09,0.0002,2]
[425819754,1781935839000,-252.0,0.0002,2]
[425819756,1781935839000,-690.0,0.0002,2]
[425819755,1781935839000,-200.0,0.0002,2]
[425819759,1781935839000,-223.0,0.0002,2]
[425819758,1781935839000,-162637.19,0.0002,2]
[425819760,1781935839000,-5735.40817936,0.00020029,2]
[425819762,1781935839000,-1865.36488656,0.00020243,2]
[425819764,1781935839000,-541.3,0.00020381,2]
[425819763,1781935839000,-1783.53,0.00020301,2]
[425819750,1781935839000,-4303.44349747,0.0002,2]
[425819736,1781935839000,-192.0,0.0002,2]
[425819765,1781935839000,-500.0,0.00020406,2]
[425819735,1781935839000,-179.51593428,0.0002,2]
[425819709,1781935839000,-32945.23544241,0.00018667,2]
[425819708,1781935839000,-166.66,0.00018633,2]
[425819711,1781935839000,-5252.71759387,0.00019,2]
[425819712,1781935839000,-160.0,0.00019,2]
[425819710,1781935839000,-253.68,0.00018861,2]
[425819714,1781935839000,-1734.62772924,0.00019147,2]
[425819713,1781935839000,-166.66,0.00019009,2]
[425819715,1781935839000,-199.5,0.00019193,2]
[425819716,1781935839000,-166.66,0.00019386,2]
[425819718,1781935839000,-500.0,0.00019399,2]
[425819721,1781935839000,-500.0,0.00019399,2]
[425819720,1781935839000,-291.10532732,0.00019399,2]
[425819734,1781935839000,-1560.08157259,0.0002,2]
[425819717,1781935839000,-912.62607048,0.00019397,2]
[425819723,1781935839000,-500.0,0.00019399,2]
[425819722,1781935839000,-500.0,0.00019399,2]
[425819725,1781935839000,-365400.71580548,0.000194,2]
[425819724,1781935839000,-235.87891074,0.00019399,2]
[425819727,1781935839000,-18325.0361429,0.00019638,2]
[425819726,1781935839000,-369.27249229,0.00019497,2]
[425819728,1781935839000,-1798.80895522,0.00019695,2]
[425819729,1781935839000,-166.66,0.00019762,2]
[425819731,1781935839000,-32945.23544241,0.00019956,2]
[425819732,1781935839000,-2966.82627137,0.00019999,2]
[425819730,1781935839000,-186.09459873,0.000199,2]
[425819733,1781935839000,-5300.22509271,0.0002,2]
[425819719,1781935839000,-500.0,0.00019399,2]
[425819761,1781935839000,-1376.43,0.00020213,2]
[425819801,1781935839000,-151.0,0.00021887,2]
[425819766,1781935839000,-500.0,0.00020438,2]
[425819799,1781935839000,-151.0,0.00021887,2]
[425819804,1781935839000,-151.0,0.00021887,2]
[425819802,1781935839000,-151.0,0.00021887,2]
[425819803,1781935839000,-151.0,0.00021887,2]
[425819800,1781935839000,-151.0,0.00021887,2]
[425819796,1781935839000,-351.13139271,0.00021599,10]
[425819806,1781935839000,-151.0,0.00021887,2]
[425819807,1781935839000,-151.0,0.00021887,2]
[425819808,1781935839000,-151.0,0.00021887,2]
[425819810,1781935839000,-151.0,0.00021887,2]
[425819809,1781935839000,-151.0,0.00021887,2]
[425819811,1781935839000,-500.0,0.00021887,2]
[425819821,1781935839000,-151.0,0.00021887,2]
[425819812,1781935839000,-151.0,0.00021887,2]
[425819816,1781935839000,-500.0,0.00021887,2]
[425819814,1781935839000,-2080.17592889,0.00021887,2]
[425819815,1781935839000,-151.0,0.00021887,2]
[425819817,1781935839000,-151.0,0.00021887,2]
[425819820,1781935839000,-500.0,0.00021887,2]
[425819818,1781935839000,-500.0,0.00021887,2]
[425819819,1781935839000,-151.0,0.00021887,2]
[425819822,1781935839000,-151.0,0.00021887,2]
[425819824,1781935839000,-151.0,0.00021887,2]
[425819825,1781935839000,-151.0,0.00021887,2]
[425819826,1781935839000,-500.0,0.00021887,2]
[425819768,1781935839000,-150.0,0.0002058,2]
[425819813,1781935839000,-500.0,0.00021887,2]
[425819798,1781935839000,-200.0,0.00021887,2]
[425819823,1781935839000,-500.0,0.00021887,2]
[425819795,1781935839000,-281.21,0.00021536,2]
[425819797,1781935839000,-1783.53,0.00021671,2]
[425819769,1781935839000,-150.0,0.0002058,2]
[425819767,1781935839000,-150.0,0.0002058,2]
[425819772,1781935839000,-288.49280492,0.0002058,2]
[425819770,1781935839000,-150.0,0.0002058,2]
[425819774,1781935839000,-1934.38338736,0.00020791,2]
[425819773,1781935839000,-500.0,0.00020655,2]
[425819775,1781935839000,-500.0,0.00020793,2]
[425819776,1781935839000,-247.81052588,0.00020793,2]
[425819780,1781935839000,-192.0,0.00021,2]
[425819778,1781935839000,-274.94,0.00020913,2]
[425819781,1781935839000,-165.0,0.00021,2]
[425819779,1781935839000,-253.68,0.00020957,2]
[425819771,1781935839000,-150.0,0.0002058,2]
[425819782,1781935839000,-252.0,0.00021,2]
[425819777,1781935839000,-18325.0361429,0.00020848,2]
[425819793,1781935839000,-226.229085,0.000215,2]
[425819790,1781935839000,-500.0,0.00021342,2]
[425819789,1781935839000,-2005.9555727,0.00021339,2]
[425819788,1781935839000,-398.0,0.00021305,2]
[425819791,1781935839000,-6499.59,0.0002137,2]
[425819792,1781935839000,-58609.03228133,0.000215,2]
[425819783,1781935839000,-200.0,0.00021,2]
[425819787,1781935839000,-32945.23544241,0.00021244,2]
[425819784,1781935839000,-690.0,0.00021,2]
[425819794,1781935839000,-340.2,0.00021536,2]
[425819786,1781935839000,-223.0,0.00021,2]
[425819785,1781935839000,-1108.0,0.00021,2]
[425819863,1781935840000,-1108.0,0.00022,2]
[425819853,1781935840000,-438.94107277,0.00022,3]
[425819858,1781935840000,-300.0,0.00022,2]
[425819857,1781935840000,-378116.03627296,0.00022,4]
[425819859,1781935840000,-637.01,0.00022,7]
[425819856,1781935840000,-2212.8319751,0.00022,2]
[425819861,1781935840000,-200.0,0.00022,2]
[425819862,1781935840000,-690.0,0.00022,2]
[425819865,1781935840000,-223.0,0.00022,2]
[425819855,1781935840000,-165.0,0.00022,2]
[425819860,1781935840000,-252.0,0.00022,2]
[425819868,1781935840000,-244.89608328,0.0002211,2]
[425819869,1781935840000,-369.27249224,0.00022231,2]
[425819871,1781935840000,-281.91,0.00022373,2]
[425819870,1781935840000,-541.3,0.00022353,2]
[425819866,1781935840000,-1376.43,0.0002205,2]
[425819867,1781935840000,-18325.0361429,0.00022057,2]
[425819872,1781935840000,-351.13139271,0.00022421,30]
[425819876,1781935840000,-407.18,0.00022466,2]
[425819881,1781935840000,-303.983277,0.00022763,7]
[425819877,1781935840000,-342.53,0.00022466,2]
[425819854,1781935840000,-192.0,0.00022,2]
[425819874,1781935840000,-151.0,0.00022435,2]
[425819864,1781935840000,-3103.46,0.00022,2]
[425819851,1781935840000,-194.2,0.00021918,8]
[425819840,1781935840000,-151.0,0.00021887,2]
[425819850,1781935840000,-716.0,0.00021918,8]
[425819878,1781935840000,-788.99456211,0.000225,2]
[425819827,1781935840000,-151.0,0.00021887,2]
[425819829,1781935840000,-500.0,0.00021887,2]
[425819828,1781935840000,-151.0,0.00021887,2]
[425819831,1781935840000,-151.0,0.00021887,2]
[425819830,1781935840000,-151.0,0.00021887,2]
[425819832,1781935840000,-500.0,0.00021887,2]
[425819833,1781935840000,-151.0,0.00021887,2]
[425819835,1781935840000,-500.0,0.00021887,2]
[425819834,1781935840000,-151.0,0.00021887,2]
[425819837,1781935840000,-151.0,0.00021887,2]
[425819836,1781935840000,-151.0,0.00021887,2]
[425819839,1781935840000,-151.0,0.00021887,2]
[425819838,1781935840000,-500.0,0.00021887,2]
[425819841,1781935840000,-151.0,0.00021887,2]
[425819843,1781935840000,-151.0,0.00021887,2]
[425819842,1781935840000,-151.0,0.00021887,2]
[425819845,1781935840000,-599.14384248,0.000219,2]
[425819844,1781935840000,-11947.89668917,0.000219,2]
[425819847,1781935840000,-186.73038388,0.000219,2]
[425819848,1781935840000,-5000.0,0.00021918,2]
[425819846,1781935840000,-198.96763094,0.000219,4]
[425819849,1781935840000,-1010.04,0.00021918,2]
[425819852,1781935840000,-500.0,0.00021999,2]
[425819879,1781935840000,-32945.23544241,0.00022533,2]
[425819873,1781935840000,-200.0,0.00022435,2]
[425819875,1781935840000,-2157.14243826,0.00022435,2]
[425819913,1781935840000,-3600.0,0.00024,2]
[425819912,1781935840000,-165.0,0.00024,2]
[425819914,1781935840000,-68874.67505529,0.00024,2]
[425819915,1781935840000,-252.0,0.00024,2]
[425819916,1781935840000,-200.0,0.00024,2]
[425819917,1781935840000,-690.0,0.00024,2]
[425819918,1781935840000,-1108.0,0.00024,2]
[425819920,1781935840000,-271.54550476,0.00024057,30]
[425819922,1781935840000,-200.0,0.00024078,2]
[425819923,1781935840000,-153.14864244,0.00024078,2]
[425819921,1781935840000,-271.54550475,0.00024057,30]
[425819924,1781935840000,-2405.55389863,0.00024078,2]
[425819927,1781935840000,-220.05119748,0.00024167,2]
[425819925,1781935840000,-356.28,0.0002411,2]
[425819928,1781935840000,-982.04,0.00024174,2]
[425819926,1781935840000,-299.71,0.0002411,2]
[425819929,1781935840000,-3408.55,0.00024174,2]
[425819930,1781935840000,-54610.75,0.00024174,2]
[425819931,1781935840000,-3512.98,0.00024174,2]
[425819932,1781935840000,-249.0,0.00024193,2]
[425819936,1781935840000,-150.0,0.00024333,2]
[425819935,1781935840000,-541.3,0.00024324,2]
[425819934,1781935840000,-2000.0,0.00024199,7]
[425819911,1781935840000,-192.0,0.00024,2]
[425819910,1781935840000,-1042.6760643,0.00024,2]
[425819919,1781935840000,-223.0,0.00024,2]
[425819907,1781935840000,-32945.23544241,0.00023822,2]
[425819880,1781935840000,-5735.40817936,0.00022643,2]
[425819909,1781935840000,-500.0,0.00023999,2]
[425819882,1781935840000,-200.0,0.00022983,2]
[425819883,1781935840000,-151.0,0.00022983,2]
[425819887,1781935840000,-252.0,0.00023,2]
[425819885,1781935840000,-192.0,0.00023,2]
[425819886,1781935840000,-165.0,0.00023,2]
[425819889,1781935840000,-690.0,0.00023,2]
[425819892,1781935840000,-1783.53,0.00023041,2]
[425819888,1781935840000,-200.0,0.00023,2]
[425819890,1781935840000,-1108.0,0.00023,2]
[425819891,1781935840000,-223.0,0.00023,2]
[425819884,1781935840000,-2236.95670847,0.00022983,2]
[425819893,1781935840000,-253.68,0.00023052,2]
[425819908,1781935840000,-567.60827254,0.0002388,7]
[425819903,1781935840000,-200.0,0.00023531,2]
[425819901,1781935840000,-180.978146,0.0002346,7]
[425819904,1781935840000,-151.0,0.00023531,2]
[425819899,1781935840000,-309.217752,0.00023459,7]
[425819902,1781935840000,-637.01,0.000235,7]
[425819894,1781935840000,-501.08961846,0.00023208,2]
[425819906,1781935840000,-175.56569636,0.0002379,30]
[425819895,1781935840000,-18325.0361429,0.00023267,2]
[425819905,1781935840000,-2319.72410669,0.00023531,2]
[425819896,1781935840000,-755.26,0.00023288,2]
[425819984,1781935841000,-151.0,0.00025,2]
[425819979,1781935841000,-438.157559,0.00025,2]
[425819977,1781935841000,-438.157559,0.00025,2]
[425819973,1781935841000,-1864921.259172,0.00025,2]
[425819976,1781935841000,-438.157559,0.00025,2]
[425819975,1781935841000,-525.765585,0.00025,2]
[425819974,1781935841000,-1006.11361588,0.00025,2]
[425819967,1781935841000,-3100.75674229,0.00025,2]
[425819969,1781935841000,-2241.98134344,0.00025,2]
[425819972,1781935841000,-4882.93828405,0.00025,2]
[425819971,1781935841000,-170.47794047,0.00025,2]
[425819970,1781935841000,-3378.12247993,0.00025,2]
[425819983,1781935841000,-155.149866,0.00025,2]
[425819991,1781935841000,-369.19,0.00025,2]
[425819986,1781935841000,-369.19,0.00025,2]
[425819985,1781935841000,-1122.70008222,0.00025,2]
[425819987,1781935841000,-369.19,0.00025,2]
[425819981,1781935841000,-212.12492282,0.00025,2]
[425819982,1781935841000,-692.40783886,0.00025,2]
[425819978,1781935841000,-438.157559,0.00025,2]
[425819980,1781935841000,-267.22809012,0.00025,2]
[425819989,1781935841000,-369.19,0.00025,2]
[425819990,1781935841000,-369.19,0.00025,2]
[425819992,1781935841000,-369.19,0.00025,2]
[425819993,1781935841000,-369.19,0.00025,2]
[425819968,1781935841000,-7261.4787169,0.00025,2]
[425819988,1781935841000,-369.19,0.00025,2]
[425819966,1781935841000,-622.30483717,0.00025,2]
[425819939,1781935841000,-500.0,0.00024605,2]
[425819964,1781935841000,-177.0,0.00025,2]
[425819937,1781935841000,-250.48151559,0.00024415,30]
[425819938,1781935841000,-18325.0361429,0.00024476,2]
[425819940,1781935841000,-500.0,0.00024605,2]
[425819994,1781935841000,-369.19,0.00025,2]
[425819941,1781935841000,-500.0,0.00024605,2]
[425819942,1781935841000,-200.0,0.00024627,2]
[425819943,1781935841000,-2494.55939288,0.00024627,2]
[425819945,1781935841000,-737.2,0.00024658,2]
[425819946,1781935841000,-1000.0,0.00024658,2]
[425819951,1781935841000,-369.27249224,0.00024965,2]
[425819947,1781935841000,-158.46,0.00024658,2]
[425819944,1781935841000,-3103.46,0.00024646,7]
[425819948,1781935841000,-157.78,0.00024658,2]
[425819949,1781935841000,-912.62607046,0.00024714,2]
[425819950,1781935841000,-252.27419809,0.00024909,4]
[425819952,1781935841000,-895.0,0.00024986,2]
[425819953,1781935841000,-14368.0,0.00024986,2]
[425819954,1781935841000,-661.1225485,0.0002499,2]
[425819960,1781935841000,-211.40724256,0.00025,2]
[425819959,1781935841000,-300.0,0.00024999,10]
[425819963,1781935841000,-208.90962168,0.00025,2]
[425819955,1781935841000,-300.0,0.00024999,10]
[425819956,1781935841000,-316.1320903,0.00024999,10]
[425819961,1781935841000,-29493.2630562,0.00025,60]
[425819957,1781935841000,-300.0,0.00024999,10]
[425819962,1781935841000,-1818.5898779,0.00025,2]
[425819958,1781935841000,-300.0,0.00024999,10]
[425819965,1781935841000,-540.0,0.00025,2]
[425819999,1781935841000,-157.78,0.00025049,7]
[425820003,1781935841000,-200.0,0.00025175,2]
[425819997,1781935841000,-233.84484808,0.00025,2]
[425820029,1781935841000,-3512.98,0.00025786,2]
[425820033,1781935841000,-1134.98924455,0.00026,2]
[425820038,1781935841000,-179.76368085,0.00026106,2]
[425820030,1781935841000,-793.37,0.00025813,2]
[425820031,1781935841000,-252.27419809,0.00025925,4]
[425820032,1781935841000,-612.59133806,0.0002599,2]
[425820035,1781935841000,-220.6392619,0.00026,2]
[425820036,1781935841000,-254.49,0.00026027,7]
[425820037,1781935841000,-151.00138861,0.00026106,2]
[425820039,1781935841000,-637.01,0.000262,7]
[425820041,1781935841000,-2781.82699784,0.00026271,2]
[425820040,1781935841000,-200.0,0.00026271,2]
[425820034,1781935841000,-4610.88759577,0.00026,2]
[425820042,1781935841000,-541.3,0.00026296,2]
[425820045,1781935841000,-500.0,0.00026399,2]
[425820046,1781935841000,-501.47667168,0.00026399,2]
[425820047,1781935841000,-1000.0,0.00026399,2]
[425820049,1781935841000,-32945.23544241,0.000264,2]
[425820048,1781935841000,-28031.17799352,0.000264,2]
[425820044,1781935841000,-2642.52115638,0.0002638,14]
[425820050,1781935841000,-50000.0,0.000265,7]
[425820051,1781935841000,-50000.0,0.000265,5]
[425820054,1781935841000,-447.640558,0.00026504,2]
[425820055,1781935841000,-150.0,0.00026512,5]
[425820052,1781935841000,-23110.41,0.000265,7]
[425819998,1781935841000,-158.46,0.00025049,7]
[425820043,1781935841000,-1497.92721167,0.0002638,14]
[425820027,1781935841000,-3408.55,0.00025786,2]
[425820053,1781935841000,-469.268159,0.00026504,2]
[425820026,1781935841000,-982.04,0.00025786,2]
[425820028,1781935841000,-54610.75,0.00025786,2]
[425820000,1781935841000,-637.01,0.000251,7]
[425819995,1781935841000,-369.19,0.00025,2]
[425820001,1781935841000,-300.0,0.0002511,10]
[425820002,1781935841000,-32945.23544241,0.00025111,2]
[425820004,1781935841000,-2586.85809042,0.00025175,2]
[425820005,1781935841000,-236.09215222,0.0002524,2]
[425820006,1781935841000,-793.37,0.0002524,2]
[425820011,1781935841000,-500.0,0.00025438,2]
[425820008,1781935841000,-206.0,0.00025416,2]
[425820007,1781935841000,-5735.40817936,0.00025257,2]
[425820010,1781935841000,-165.30058026,0.00025417,4]
[425820009,1781935841000,-313.22732885,0.00025417,2]
[425819996,1781935841000,-151.0,0.00025,2]
[425820014,1781935841000,-504.12362656,0.00025438,2]
[425820025,1781935841000,-1000.46331518,0.00025763,2]
[425820012,1781935841000,-500.0,0.00025438,2]
[425820024,1781935841000,-178.12,0.00025756,2]
[425820021,1781935841000,-300.0,0.00025699,10]
[425820020,1781935841000,-18325.0361429,0.00025686,2]
[425820022,1781935841000,-200.0,0.00025723,2]
[425820023,1781935841000,-2682.57183977,0.00025723,2]
[425820018,1781935841000,-157.78,0.0002544,30]
[425820017,1781935841000,-158.46,0.0002544,30]
[425820015,1781935841000,-220.05119748,0.00025439,2]
[425820013,1781935841000,-793.37,0.00025438,2]
[425820016,1781935841000,-386.83029134,0.00025439,2]
[425820019,1781935841000,-259.909435,0.00025555,7]
[425820093,1781935842000,-2991.49051684,0.00027367,2]
[425820096,1781935842000,-429.9505709,0.00027397,2]
[425820089,1781935842000,-3103.46,0.00027291,7]
[425820090,1781935842000,-460.42858565,0.00027324,2]
[425820092,1781935842000,-200.0,0.00027367,2]
[425820087,1781935842000,-150.0,0.00027187,7]
[425820088,1781935842000,-150.0,0.00027276,7]
[425820095,1781935842000,-542.68886294,0.00027397,2]
[425820083,1781935842000,-1500.84218978,0.000271,2]
[425820094,1781935842000,-1500.0,0.00027397,2]
[425820085,1781935842000,-489.41594205,0.000271,2]
[425820103,1781935842000,-1500.84218978,0.000274,2]
[425820097,1781935842000,-151.0,0.00027397,2]
[425820098,1781935842000,-737.2,0.00027397,2]
[425820101,1781935842000,-9245.91,0.00027397,10]
[425820100,1781935842000,-300.0,0.00027397,2]
[425820099,1781935842000,-5345.93,0.00027397,10]
[425820104,1781935842000,-1551.1294858,0.000274,2]
[425820105,1781935842000,-489.41594205,0.000274,2]
[425820102,1781935842000,-1719.98634527,0.000274,2]
[425820107,1781935842000,-3132.97,0.000274,2]
[425820109,1781935842000,-3132.97,0.000274,2]
[425820076,1781935842000,-150.0,0.00027099,7]
[425820106,1781935842000,-3132.97,0.000274,2]
[425820091,1781935842000,-150.0,0.00027364,7]
[425820084,1781935842000,-1551.1294858,0.000271,2]
[425820067,1781935842000,-500.0,0.00026999,2]
[425820086,1781935842000,-502.0,0.00027137,2]
[425820111,1781935842000,-3132.97,0.000274,2]
[425820056,1781935842000,-229.0,0.00026548,7]
[425820059,1781935842000,-252.27419809,0.00026942,4]
[425820057,1781935842000,-200.0,0.00026819,2]
[425820058,1781935842000,-2884.75459676,0.00026819,2]
[425820061,1781935842000,-500.0,0.00026999,2]
[425820060,1781935842000,-500.0,0.00026999,2]
[425820062,1781935842000,-500.0,0.00026999,2]
[425820063,1781935842000,-500.0,0.00026999,2]
[425820069,1781935842000,-150.0,0.00026999,2]
[425820066,1781935842000,-500.0,0.00026999,2]
[425820068,1781935842000,-376.46013189,0.00026999,2]
[425820072,1781935842000,-3295.0,0.00027058,5]
[425820065,1781935842000,-500.0,0.00026999,2]
[425820070,1781935842000,-857.0,0.00027,7]
[425820064,1781935842000,-500.0,0.00026999,2]
[425820071,1781935842000,-500.0,0.00027015,2]
[425820073,1781935842000,-150.0,0.00027099,7]
[425820074,1781935842000,-150.0,0.00027099,7]
[425820075,1781935842000,-150.63149704,0.00027099,7]
[425820078,1781935842000,-150.0,0.00027099,7]
[425820081,1781935842000,-289.4521925,0.000271,2]
[425820077,1781935842000,-152.70737994,0.00027099,7]
[425820080,1781935842000,-150.0,0.00027099,7]
[425820079,1781935842000,-150.0,0.00027099,7]
[425820082,1781935842000,-1719.98634527,0.000271,2]
[425820114,1781935842000,-3132.97,0.000274,2]
[425820146,1781935842000,-500.0,0.00027785,15]
[425820127,1781935842000,-150.0,0.00027541,7]
[425820164,1781935842000,-2000.0,0.0002815,7]